bitfinex/quotes_SOLUSD_20250918
["timestamp","ask_amount","ask_price","bid_price","bid_amount"]
[1758173648788,2.72037638,244.89,244.88,0.69]
[1758173649095,26.0,244.89,244.88,0.69]
[1758173649293,28.72037638,244.89,244.88,0.69]
[1758173649669,2.72037638,244.89,244.88,0.69]
[1758173649870,26.0,244.89,244.88,0.69]
[1758173650070,28.72037638,244.89,244.88,0.69]
[1758173655089,4.20262083,244.89,244.88,0.03]
[1758173655271,33.50224445,244.89,244.88,0.03]
[1758173655465,36.22262083,244.89,244.88,0.03]
[1758173655667,4.88262083,244.89,244.88,0.03]
[1758173655885,38.6913991,244.89,244.88,0.03]
[1758173656690,38.0113991,244.89,244.88,0.03]
[1758173657070,38.6913991,244.89,244.88,0.03]
[1758173657483,5.03506447,244.89,244.88,0.03]
[1758173657792,38.6913991,244.89,244.88,0.03]
[1758173658087,7.3513991,244.89,244.88,0.03]
[1758173658282,35.69506447,244.89,244.88,0.03]
[1758173658485,38.6913991,244.89,244.88,0.03]
[1758173658674,41.00773373,244.89,244.88,0.03]
[1758173659875,9.66773373,244.89,244.88,0.03]
[1758173660182,41.00773373,244.89,244.88,0.03]
[1758173661393,9.66773373,244.89,244.88,0.03]
[1758173661599,41.00773373,244.89,244.88,0.03]
[1758173663491,9.66773373,244.89,244.88,0.03]
[1758173663696,41.00773373,244.89,244.88,0.03]
[1758173667096,36.37506447,244.89,244.88,0.03]
[1758173667307,41.00773373,244.89,244.88,0.03]
[1758173667681,9.66773373,244.89,244.88,0.03]
[1758173667887,41.00773373,244.89,244.88,0.03]
[1758173669493,9.66773373,244.89,244.88,0.03]
[1758173669806,38.0113991,244.89,244.88,0.03]
[1758173670101,41.00773373,244.89,244.88,0.03]
[1758173670695,9.66773373,244.89,244.88,0.03]
[1758173670904,41.00773373,244.89,244.88,0.03]
[1758173672003,40.32773373,244.89,244.88,0.03]
[1758173672505,41.00773373,244.89,244.88,0.03]
[1758173672701,41.03773373,244.89,244.88,0.03]
[1758173673078,9.69773373,244.89,244.88,0.03]
[1758173673277,35.69506447,244.89,244.88,0.03]
[1758173673482,2.72037638,244.89,244.88,0.73]
[1758173673714,28.31633463,244.89,244.88,0.73]
[1758173673920,62.37671101,244.89,244.88,0.73]
[1758173674598,28.72037638,244.89,244.88,0.73]
[1758173677005,26.0,244.89,244.88,0.73]
[1758173682295,26.71,244.89,244.88,0.03]
[1758173682497,26.0,244.89,244.88,0.03]
[1758173682995,26.0,244.89,244.88,0.73]
[1758173683591,28.31633463,244.89,244.88,0.03]
[1758173683799,29.02633463,244.89,244.88,0.03]
[1758173684115,31.74807701,244.89,244.88,0.03]
[1758173684320,29.43174238,244.89,244.88,0.03]
[1758173684614,31.74807701,244.89,244.88,0.03]
[1758173684915,31.03807701,244.89,244.88,0.03]
[1758173685918,28.72174238,244.89,244.88,0.03]
[1758173686223,31.03807701,244.89,244.88,0.03]
[1758173686405,62.37807701,244.89,244.88,0.03]
[1758173686602,60.06174238,244.89,244.88,0.03]
[1758173686809,62.37807701,244.89,244.88,0.03]
[1758173687907,60.06174238,244.89,244.88,0.03]
[1758173688108,62.37807701,244.89,244.88,0.03]
[1758173690427,31.03807701,244.89,244.88,0.03]
[1758173690637,62.37807701,244.89,244.88,0.03]
[1758173691431,28.72174238,244.89,244.88,0.03]
[1758173693106,26.0,244.89,244.88,0.03]
[1758173694428,5.74897953,244.89,244.88,0.03]
[1758173694900,7.38353402,244.89,244.88,0.03]
[1758173696214,38.72353402,244.89,244.88,0.03]
[1758173697004,7.38353402,244.89,244.88,0.03]
[1758173697206,38.72353402,244.89,244.88,0.03]
[1758173697407,37.08897953,244.89,244.88,0.03]
[1758173699136,34.7726449,244.89,244.88,0.03]
[1758173699306,36.37897953,244.89,244.88,0.03]
[1758173699511,37.08897953,244.89,244.88,0.03]
[1758173699712,5.74897953,244.89,244.88,0.03]
[1758173700010,37.08897953,244.89,244.88,0.03]
[1758173701440,34.7726449,244.89,244.88,0.03]
[1758173701618,37.08897953,244.89,244.88,0.03]
[1758173701818,5.74897953,244.89,244.88,0.03]
[1758173702024,37.08897953,244.89,244.88,0.03]
[1758173702714,7.38353401,244.89,244.88,0.03]
[1758173702910,38.72353401,244.89,244.88,0.03]
[1758173703320,7.38353401,244.89,244.88,0.03]
[1758173703512,37.08897953,244.89,244.88,0.03]
[1758173704149,34.0626449,244.89,244.88,0.72]
[1758173704435,5.03897953,244.89,244.88,0.72]
[1758173704733,4.14316263,244.91,244.88,0.72]
[1758173704934,0.06,244.91,244.88,0.72]
[1758173705234,0.66,244.9,244.88,0.03]
[1758173705433,60.31633463,244.89,244.88,0.03]
[1758173705631,63.03842067,244.89,244.88,0.03]
[1758173706330,68.7564412,244.89,244.88,0.03]
[1758173706532,71.07277583,244.89,244.88,0.03]
[1758173706934,68.7564412,244.89,244.88,0.03]
[1758173707516,66.44010657,244.89,244.88,0.03]
[1758173707717,68.7564412,244.89,244.88,0.03]
[1758173707948,68.0964412,244.89,244.88,0.03]
[1758173708733,34.44010657,244.89,244.88,0.03]
[1758173708914,63.73980067,244.89,244.88,0.03]
[1758173709117,66.4622202,244.89,244.88,0.03]
[1758173709327,35.1222202,244.89,244.88,0.03]
[1758173709636,66.4622202,244.89,244.88,0.03]
[1758173710045,61.42346604,244.89,244.88,0.03]
[1758173710245,37.73980067,244.89,244.88,0.72]
[1758173710415,37.73980067,244.89,244.88,0.03]
[1758173710615,6.39980067,244.89,244.88,0.03]
[1758173710813,4.08346604,244.89,244.88,0.03]
[1758173711017,6.39980067,244.89,244.88,0.03]
[1758173712540,0.06,244.91,244.88,0.72]
[1758173713228,2.37633463,244.91,244.88,0.72]
[1758173714132,0.06,244.91,244.88,0.72]
[1758173715019,0.06,244.91,244.89,0.69]
[1758173715830,0.06,244.91,244.88,0.03]
[1758173716030,0.06,244.91,244.89,0.69]
[1758173716545,4.14315353,244.91,244.89,0.69]
[1758173716952,4.14315353,244.91,244.9,0.69]
[1758173717855,26.06,244.91,244.9,0.69]
[1758173718748,26.06,244.91,244.88,0.03]
[1758173719047,26.06,244.91,244.89,0.69]
[1758173720256,30.14315107,244.91,244.88,0.03]
[1758173720433,30.14315107,244.91,244.88,0.72]
[1758173722267,30.14315107,244.91,244.88,0.03]
[1758173722554,6.2250625,244.9,244.88,0.03]
[1758173723053,0.66,244.89,244.88,0.03]
[1758173724753,5.5650625,244.9,244.88,0.03]
[1758173724954,6.2250625,244.9,244.88,0.03]
[1758173725255,0.66,244.89,244.88,0.03]
[1758173726743,9.92092732,244.9,244.88,0.03]
[1758173726944,7.85941662,244.9,244.88,0.03]
[1758173727141,10.58092696,244.9,244.88,0.03]
[1758173727449,10.13020684,244.89,244.88,0.03]
[1758173727831,12.42516218,244.89,244.88,0.03]
[1758173729264,43.76516218,244.89,244.88,0.03]
[1758173732747,36.35646568,244.89,244.88,0.03]
[1758173732964,43.76516218,244.89,244.88,0.03]
[1758173734267,5.01646568,244.89,244.88,0.03]
[1758173734453,43.76516218,244.89,244.88,0.03]
[1758173741340,4.35646568,244.89,244.88,0.03]
[1758173741665,34.45669464,244.89,244.88,0.03]
[1758173742162,37.17311527,244.89,244.88,0.03]
[1758173742764,35.69137597,244.89,244.88,0.03]
[1758173743086,37.17311527,244.89,244.88,0.03]
[1758173745064,37.17311527,244.89,244.88,0.69]
[1758173745853,4.35137597,244.89,244.88,0.03]
[1758173746181,34.45669464,244.89,244.88,0.03]
[1758173746467,37.17311527,244.89,244.88,0.03]
[1758173747173,37.17311527,244.89,244.88,0.69]
[1758173747365,37.17311527,244.89,244.88,0.03]
[1758173749567,39.35485457,244.89,244.88,0.03]
[1758173749776,43.80007247,244.89,244.88,0.03]
[1758173761254,60.79613696,244.89,244.88,0.03]
[1758173761450,57.39566648,244.89,244.88,0.03]
[1758173761876,43.10007247,244.89,244.88,0.03]
[1758173762184,12.44007247,244.89,244.88,0.03]
[1758173762410,43.78007247,244.89,244.88,0.03]
[1758173762561,39.33485457,244.89,244.88,0.03]
[1758173762762,38.65485457,244.89,244.88,0.03]
[1758173765588,37.17311527,244.89,244.88,0.73]
[1758173766570,37.17311527,244.89,244.88,0.03]
[1758173767898,37.17311527,244.89,244.88,0.73]
[1758173768474,5.83311527,244.89,244.88,0.73]
[1758173768686,34.45669464,244.89,244.88,0.73]
[1758173768992,37.17311527,244.89,244.88,0.73]
[1758173772092,4.35137597,244.89,244.88,0.73]
[1758173772275,35.67137597,244.89,244.88,0.73]
[1758173772592,37.15311527,244.89,244.88,0.73]
[1758173772790,35.67137597,244.89,244.88,0.73]
[1758173772988,37.15311527,244.89,244.88,0.03]
[1758173775795,35.67137597,244.89,244.88,0.73]
[1758173775984,31.83311527,244.89,244.88,0.73]
[1758173776183,63.15311527,244.89,244.88,0.73]
[1758173776999,61.67137597,244.89,244.88,0.73]
[1758173777203,63.15311527,244.89,244.88,0.03]
[1758173777801,32.66717958,244.89,244.88,0.03]
[1758173777994,63.98717958,244.89,244.88,0.03]
[1758173779910,61.67137597,244.89,244.88,0.03]
[1758173780088,63.98717958,244.89,244.88,0.03]
[1758173780806,32.66717958,244.89,244.88,0.03]
[1758173781011,63.98717958,244.89,244.88,0.03]
[1758173781310,62.35222424,244.89,244.88,0.03]
[1758173782512,60.03642063,244.89,244.88,0.03]
[1758173782891,62.35222424,244.89,244.88,0.03]
[1758173783088,60.03642063,244.89,244.88,0.03]
[1758173783291,62.35222424,244.89,244.88,0.73]
[1758173784212,62.35222424,244.89,244.88,0.03]
[1758173784587,31.03222424,244.89,244.88,0.03]
[1758173784920,62.35222424,244.89,244.88,0.03]
[1758173785290,31.03222424,244.89,244.88,0.03]
[1758173785490,28.71642063,244.89,244.88,0.03]
[1758173785695,62.35222424,244.89,244.88,0.03]
[1758173786093,31.03222424,244.89,244.88,0.03]
[1758173786296,62.35222424,244.89,244.88,0.03]
[1758173787902,31.03222424,244.89,244.88,0.03]
[1758173788104,62.35222424,244.89,244.88,0.03]
[1758173788800,31.03222424,244.89,244.88,0.03]
[1758173789002,62.35222424,244.89,244.88,0.03]
[1758173789410,60.03642063,244.89,244.88,0.03]
[1758173789608,62.35222424,244.89,244.88,0.03]
[1758173790018,31.03222424,244.89,244.88,0.03]
[1758173790225,62.35222424,244.89,244.88,0.03]
[1758173791519,31.03222424,244.89,244.88,0.03]
[1758173791719,62.35222424,244.89,244.88,0.03]
[1758173792114,60.03642063,244.89,244.88,0.03]
[1758173792323,62.35222424,244.89,244.88,0.03]
[1758173793320,31.03222424,244.89,244.88,0.03]
[1758173793624,60.03642063,244.89,244.88,0.03]
[1758173793811,62.35222424,244.89,244.88,0.03]
[1758173795902,60.03642063,244.89,244.88,0.03]
[1758173796098,62.35222424,244.89,244.88,0.03]
[1758173797513,31.03222424,244.89,244.88,0.03]
[1758173797721,62.35222424,244.89,244.88,0.03]
[1758173798425,31.03222424,244.89,244.88,0.03]
[1758173798625,62.35222424,244.89,244.88,0.03]
[1758173800228,31.03222424,244.89,244.88,0.03]
[1758173800424,28.71642063,244.89,244.88,0.03]
[1758173800629,62.35222424,244.89,244.88,0.72]
[1758173800816,31.03222424,244.89,244.88,0.72]
[1758173801014,62.35222424,244.89,244.88,0.72]
[1758173801521,62.35222424,244.89,244.88,0.03]
[1758173802327,31.03222424,244.89,244.88,0.03]
[1758173802529,62.35222424,244.89,244.88,0.03]
[1758173802925,31.03222424,244.89,244.88,0.03]
[1758173803126,62.35222424,244.89,244.88,0.03]
[1758173803427,2.71642063,244.89,244.88,0.72]
[1758173803729,0.06,244.91,244.88,1.00432314]
[1758173804112,0.06,244.91,244.89,0.69]
[1758173806009,0.06,244.91,244.89,0.97432314]
[1758173806409,0.06,244.91,244.9,0.69]
[1758173808120,0.06,244.91,244.9,14.56991715]
[1758173813828,0.06,244.91,244.9,14.59991715]
[1758173817844,0.06,244.91,244.9,45.89991715]
[1758173818952,0.06,244.91,244.9,0.03]
[1758173818953,0.73,244.91,244.9,0.03]
[1758173819334,3.04580361,244.91,244.9,0.03]
[1758173819532,0.73,244.91,244.9,0.03]
[1758173820822,0.06,244.91,244.9,0.03]
[1758173821238,0.73,244.91,244.9,0.03]
[1758173822941,0.73,244.91,244.9,0.7]
[1758173822942,0.06,244.91,244.9,0.7]
[1758173823333,0.06,244.91,244.9,14.29559401]
[1758173823647,0.06,244.91,244.9,14.57991715]
[1758173824635,0.06,244.91,244.9,18.66321645]
[1758173826551,0.06,244.91,244.9,49.96321645]
[1758173829746,0.06,244.91,244.9,17.99321645]
[1758173830058,0.06,244.91,244.9,45.20991715]
[1758173830255,0.06,244.91,244.9,13.90991715]
[1758173835161,0.06,244.91,244.9,45.20991715]
[1758173836159,0.78,244.91,244.9,45.20991715]
[1758173836534,0.06,244.91,244.9,45.20991715]
[1758173838946,0.78,244.91,244.9,45.20991715]
[1758173839141,0.78,244.91,244.9,0.03]
[1758173844777,2.26105101,244.91,244.9,0.03]
[1758173846457,26.78,244.91,244.9,0.03]
[1758173846659,28.26105101,244.91,244.9,0.03]
[1758173847462,26.78,244.91,244.9,0.03]
[1758173848456,0.06,244.91,244.9,0.03]
[1758173849271,0.78,244.91,244.9,0.03]
[1758173849876,0.06,244.91,244.9,0.03]
[1758173850083,0.78,244.91,244.9,0.03]
[1758173850382,2.26105101,244.91,244.9,0.03]
[1758173851773,28.26105101,244.91,244.9,0.03]
[1758173852073,30.98101312,244.91,244.9,0.03]
[1758173853978,28.26105101,244.91,244.9,0.03]
[1758173859693,26.78,244.91,244.9,0.03]
[1758173859877,28.26105101,244.91,244.9,0.03]
[1758173860188,2.26105101,244.91,244.9,0.03]
[1758173860575,28.26105101,244.91,244.9,0.03]
[1758173860785,2.26105101,244.91,244.9,0.03]
[1758173869891,28.26105101,244.91,244.9,0.03]
[1758173870091,2.26105101,244.91,244.9,0.03]
[1758173873694,26.06,244.91,244.9,0.03]
[1758173874098,1.54105101,244.91,244.9,0.03]
[1758173874489,27.54105101,244.91,244.9,0.03]
[1758173874800,1.54105101,244.91,244.9,0.03]
[1758173876099,0.06,244.91,244.9,0.72]
[1758173883705,0.06,244.91,244.9,0.03]
[1758173883910,0.72,244.91,244.9,0.03]
[1758173885186,2.20105101,244.91,244.9,0.03]
[1758173885601,4.92409236,244.91,244.9,0.03]
[1758173885801,2.20105101,244.91,244.9,0.03]
[1758173888395,4.92409236,244.91,244.9,0.03]
[1758173888712,3.44304135,244.91,244.9,0.03]
[1758173889015,4.92409236,244.91,244.9,0.03]
[1758173890411,4.89988369,244.91,244.9,0.03]
[1758173898025,5.73486202,244.91,244.9,0.03]
[1758173901830,7.3694165,244.91,244.9,0.03]
[1758173902819,4.39338716,244.91,244.9,0.75]
[1758173903027,0.03579133,244.91,244.9,0.75]
[1758173903219,26.03579133,244.91,244.9,0.75]
[1758173903527,2.75883268,244.91,244.9,0.75]
[1758173903727,0.03579133,244.91,244.9,0.75]
[1758173903940,26.03579133,244.91,244.9,0.75]
[1758173904134,28.75883268,244.91,244.9,0.75]
[1758173905428,31.07486202,244.91,244.9,0.03]
[1758173905814,37.03486202,244.91,244.9,0.03]
[1758173906026,38.66928292,244.91,244.9,0.03]
[1758173909445,38.00928292,244.91,244.9,0.03]
[1758173909615,38.66928292,244.91,244.9,0.03]
[1758173915532,26.0,244.88,244.87,0.03]
[1758173915727,62.33907069,244.88,244.87,0.03]
[1758173915926,62.99907069,244.88,244.87,0.03]
[1758173916432,62.31786305,244.88,244.87,0.03]
[1758173916635,64.63389239,244.88,244.87,0.03]
[1758173916823,68.71752518,244.88,244.87,0.03]
[1758173918659,66.40149584,244.88,244.87,0.03]
[1758173918831,68.71752518,244.88,244.87,0.03]
[1758173919933,82.32585505,244.88,244.83,0.03]
[1758173920138,28.31602934,244.84,244.83,0.03]
[1758173920328,62.33907069,244.84,244.83,0.03]
[1758173920644,62.99907069,244.84,244.83,0.03]
[1758173921022,67.08337064,244.84,244.83,0.03]
[1758173922040,68.71852649,244.84,244.83,0.03]
[1758173922745,81.52962884,244.84,244.75,53.57311107]
[1758173922922,2.31602934,244.76,244.75,53.57311107]
[1758173923245,2.31602934,244.76,244.75,54.26311107]
[1758173923449,14.58170385,244.76,244.75,54.26311107]
[1758173923745,18.66733875,244.76,244.75,53.76311107]
[1758173924754,19.32733875,244.76,244.75,53.07311107]
[1758173925246,18.66733875,244.76,244.75,53.07311107]
[1758173926027,19.32733875,244.76,244.75,53.07311107]
[1758173926229,50.62733875,244.76,244.75,53.07311107]
[1758173929452,26.0,244.73,244.71,0.1]
[1758173929638,33.61602934,244.72,244.71,0.1]
[1758173929844,38.36233205,244.72,244.71,0.1]
[1758173930233,39.9981566,244.72,244.71,0.1]
[1758173930856,39.3381566,244.72,244.71,0.1]
[1758173931949,55.90977995,244.72,244.71,0.1]
[1758173932246,2.31602934,244.66,244.63,0.69]
[1758173932453,33.61602934,244.66,244.63,0.69]
[1758173932835,33.61602934,244.66,244.61,0.79]
[1758173933033,35.91225538,244.66,244.61,0.79]
[1758173933247,33.59622604,244.66,244.61,0.79]
[1758173933544,35.99225538,244.66,244.61,0.79]
[1758173933745,1.63622604,244.66,244.61,0.1]
[1758173933948,35.33225538,244.66,244.64,0.69]
[1758173934145,39.41956021,244.66,244.64,0.69]
[1758173934437,39.41956021,244.66,244.63,0.69]
[1758173934636,39.43956021,244.66,244.63,0.69]
[1758173934856,8.03956021,244.66,244.63,0.69]
[1758173935036,39.43956021,244.66,244.63,0.69]
[1758173935233,1.63622604,244.66,244.63,0.69]
[1758173935436,35.35225538,244.66,244.61,0.79]
[1758173935637,35.35225538,244.66,244.61,0.1]
[1758173935844,35.37225538,244.66,244.63,0.69]
[1758173936241,3.95225538,244.66,244.63,0.69]
[1758173936559,35.37225538,244.66,244.63,0.69]
[1758173938042,35.37225538,244.66,244.61,0.79]
[1758173938941,35.37225538,244.66,244.61,0.1]
[1758173939137,35.37225538,244.66,244.62,0.71]
[1758173939331,3.95225538,244.66,244.62,0.71]
[1758173939537,3.95225538,244.66,244.61,0.1]
[1758173939734,35.37225538,244.66,244.65,0.91]
[1758173940141,35.37225538,244.66,244.65,0.2]
[1758173940754,35.37225538,244.66,244.65,0.91]
[1758173940755,3.95225538,244.66,244.65,0.91]
[1758173940952,35.37225538,244.66,244.65,0.2]
[1758173942068,35.37225538,244.66,244.65,0.91]
[1758173942261,33.05622604,244.66,244.65,0.91]
[1758173942439,3.95225538,244.66,244.65,0.91]
[1758173942845,35.37225538,244.66,244.65,0.91]
[1758173943252,3.95225538,244.66,244.65,0.91]
[1758173943454,35.37225538,244.66,244.65,0.91]
[1758173944668,35.37225538,244.66,244.65,0.2]
[1758173945953,3.95225538,244.66,244.65,0.2]
[1758173946286,3.95225538,244.66,244.65,0.92]
[1758173946572,35.35225538,244.66,244.65,0.2]
[1758173947656,3.95225538,244.66,244.65,0.2]
[1758173947862,35.35225538,244.66,244.65,0.2]
[1758173950088,33.03622604,244.66,244.65,0.2]
[1758173950372,35.35225538,244.66,244.65,0.2]
[1758173950964,33.75622604,244.66,244.65,0.2]
[1758173951163,36.19225538,244.66,244.65,0.2]
[1758173951572,33.87622604,244.66,244.65,0.2]
[1758173951772,36.19225538,244.66,244.65,0.2]
[1758173951957,4.67225538,244.66,244.65,0.2]
[1758173952160,36.19225538,244.66,244.65,0.2]
[1758173952364,38.50828472,244.66,244.65,0.2]
[1758173953364,36.19225538,244.66,244.65,0.2]
[1758173953679,52.38820187,244.66,244.65,0.2]
[1758173954472,52.38820187,244.66,244.65,1e-08]
[1758173955984,52.38820187,244.66,244.61,1e-08]
[1758173955985,39.87991715,244.62,244.61,1e-08]
[1758173956155,59.83602934,244.62,244.52,0.72]
[1758173956356,26.0,244.58,244.52,0.72]
[1758173956555,26.0,244.54,244.52,0.72]
[1758173956758,33.85602934,244.53,244.52,0.72]
[1758173957062,59.85602934,244.54,244.53,0.72]
[1758173957260,57.54,244.54,244.53,0.72]
[1758173957604,72.13174184,244.54,244.53,0.72]
[1758173957783,71.30203642,244.54,244.53,0.72]
[1758173958958,26.0,244.52,244.51,0.82]
[1758173959280,57.54,244.52,244.51,0.1]
[1758173959484,59.02632392,244.52,244.51,0.1]
[1758173959664,59.02632392,244.52,244.51,0.82]
[1758173960359,59.02632392,244.52,244.51,0.1]
[1758173960582,69.81822457,244.52,244.51,0.82]
[1758173961089,71.30454849,244.52,244.51,0.82]
[1758173961661,59.02632392,244.52,244.51,0.82]
[1758173961863,61.62964501,244.52,244.51,0.1]
[1758173962083,57.58,244.52,244.51,0.1]
[1758173962264,59.06632392,244.52,244.51,0.1]
[1758173963083,59.76632392,244.52,244.51,0.1]
[1758173963881,33.76632392,244.52,244.51,0.1]
[1758173965067,33.78632392,244.52,244.51,0.1]
[1758173965260,2.20632392,244.52,244.51,0.1]
[1758173965463,33.78632392,244.52,244.51,0.1]
[1758173965687,2.20632392,244.52,244.51,0.1]
[1758173965891,33.78632392,244.52,244.51,0.1]
[1758173966963,3.88493892,244.52,244.51,0.1]
[1758173967286,35.44493892,244.52,244.51,0.1]
[1758173967594,35.44493892,244.52,244.46,0.958615]
[1758173967595,26.0,244.48,244.46,0.958615]
[1758173967962,15.03434296,244.51,244.46,0.958615]
[1758173967963,33.12632392,244.47,244.46,0.958615]
[1758173968166,0.5,244.5,244.47,0.72]
[1758173968375,1.48632392,244.48,244.47,0.72]
[1758173969571,1.63729764,244.52,244.47,0.72]
[1758173969771,26.0,244.48,244.47,0.72]
[1758173970287,31.68,244.48,244.47,0.72]
[1758173970490,1.48632392,244.48,244.47,0.72]
[1758173970983,5.57668162,244.48,244.46,0.958615]
[1758173971184,33.22632392,244.47,244.46,0.958615]
[1758173971376,33.22632392,244.47,244.46,1.678615]
[1758173971575,31.74,244.47,244.46,1.678615]
[1758173972082,26.0,244.47,244.46,1.678615]
[1758173974092,26.0,244.5,244.46,1.678615]
[1758173974275,26.0,244.47,244.46,0.958615]
[1758173974997,27.48632392,244.47,244.46,1.648615]
[1758173975492,26.0,244.47,244.46,1.648615]
[1758173975874,27.48632392,244.47,244.46,1.648615]
[1758173976491,26.0,244.47,244.46,1.648615]
[1758173976687,27.48632392,244.47,244.46,1.648615]
[1758173976879,26.0,244.47,244.46,1.648615]
[1758173978880,27.48632392,244.47,244.46,1.648615]
[1758173979684,0.7,244.55,244.46,1.648615]
[1758173979886,1.48632392,244.51,244.47,0.69]
[1758173980191,27.48632392,244.51,244.48,0.69]
[1758173981306,27.48632392,244.51,244.46,5.04920173]
[1758173981307,26.0,244.51,244.49,0.69]
[1758173981515,0.7,244.56,244.5,0.69]
[1758173981698,1.48632392,244.53,244.5,0.69]
[1758173983204,27.48632392,244.52,244.49,0.69]
[1758173983881,27.48632392,244.52,244.46,5.04920359]
[1758173984081,27.48632392,244.52,244.49,0.69]
[1758173984296,1.48632392,244.51,244.49,0.69]
[1758173984502,26.0,244.52,244.49,0.69]
[1758173984919,27.48632392,244.52,244.49,0.69]
[1758173985087,1.48632392,244.52,244.5,0.69]
[1758173985585,32.38,244.54,244.5,0.69]
[1758173985789,1.48632392,244.52,244.5,0.69]
[1758173986205,32.38,244.54,244.5,0.69]
[1758173986396,1.48632392,244.52,244.5,0.69]
[1758173989107,32.38,244.54,244.5,0.69]
[1758173989108,31.68,244.54,244.5,0.69]
[1758173989303,31.68,244.54,244.48,4.09024301]
[1758173989508,1.48632392,244.53,244.5,0.69]
[1758173989816,30.78916892,244.55,244.51,0.69]
[1758173989984,1.48632392,244.53,244.51,0.69]
[1758173990191,1.48632392,244.53,244.47,13.59559401]
[1758173990409,1.48632392,244.53,244.49,0.69]
[1758173990707,1.48632392,244.53,244.5,0.69]
[1758173991799,1.48632392,244.54,244.5,0.69]
[1758173992005,30.08916892,244.55,244.51,0.69]
[1758173992303,1.48632392,244.53,244.5,0.03]
[1758173992507,1.48632392,244.53,244.51,0.69]
[1758173992691,0.06,244.52,244.51,0.69]
[1758173998709,0.06,244.52,244.5,0.03]
[1758173999014,0.06,244.52,244.5,0.72]
[1758173999203,0.06,244.52,244.5,0.03]
[1758173999393,0.06,244.52,244.51,0.68]
[1758173999709,0.06,244.52,244.5,0.03]
[1758174000803,26.74,244.52,244.5,0.03]
[1758174001318,0.06,244.52,244.5,13.62559401]
[1758174001492,0.06,244.52,244.5,0.03]
[1758174001693,0.06,244.52,244.5,0.71]
[1758174002136,0.06,244.52,244.5,0.03]
[1758174003117,0.06,244.52,244.5,0.7]
[1758174003317,0.06,244.52,244.5,0.03]
[1758174003494,0.06,244.52,244.51,14.26559401]
[1758174003696,0.06,244.52,244.51,14.54991715]
[1758174003902,0.06,244.52,244.5,0.31432314]
[1758174003903,0.06,244.52,244.5,0.03]
[1758174004102,0.06,244.52,244.51,0.67]
[1758174005298,0.06,244.52,244.5,0.03]
[1758174005499,0.06,244.52,244.5,0.7]
[1758174006124,0.06,244.52,244.5,0.03]
[1758174006304,0.72,244.52,244.5,0.03]
[1758174006506,0.06,244.52,244.5,0.03]
[1758174007200,0.72,244.52,244.5,0.03]
[1758174007498,0.06,244.52,244.51,0.67]
[1758174008099,0.06,244.52,244.51,14.54991715]
[1758174008599,1e-08,244.52,244.51,66.24991715]
[1758174008821,1e-08,244.52,244.51,46.24991715]
[1758174009412,1e-08,244.52,244.51,50.33972942]
[1758174010907,1e-08,244.52,244.51,18.63972942]
[1758174011109,1e-08,244.52,244.51,50.35972942]
[1758174011315,0.06,244.61,244.52,13.87991715]
[1758174011622,0.06,244.61,244.56,13.59559401]
[1758174012016,0.06,244.61,244.59,0.28432314]
[1758174012212,0.06,244.61,244.6,13.87991715]
[1758174012399,0.06,244.61,244.58,13.59559401]